bitfinex/quotes_SOLUSD_20230101
["timestamp","ask_amount","ask_price","bid_price","bid_amount"]
[1672574506573,20.0,9.9334,9.9274,75.63]
[1672574506780,20.0,9.9334,9.9275,40.0]
[1672574506995,20.0,9.9334,9.9276,75.63]
[1672574507205,20.0,9.9334,9.9268,75.63]
[1672574507641,11.84870354,9.9333,9.9266,75.63]
[1672574507855,20.0,9.9332,9.9267,40.0]
[1672574508057,20.0,9.9332,9.9268,75.63]
[1672574508274,20.0,9.9332,9.9263,40.0]
[1672574508482,20.0,9.9332,9.9264,75.64]
[1672574508795,20.0,9.9332,9.9265,40.0]
[1672574508992,20.0,9.9332,9.9267,40.0]
[1672574509202,20.0,9.9332,9.9269,40.0]
[1672574509413,20.0,9.9332,9.927,75.63]
[1672574509624,20.0,9.9332,9.9271,40.0]
[1672574509946,20.0,9.9332,9.9273,40.0]
[1672574510265,20.0,9.9332,9.9274,75.63]
[1672574510482,20.0,9.9332,9.9273,40.0]
[1672574510679,20.0,9.9332,9.9275,40.0]
[1672574510882,20.0,9.9332,9.9276,75.63]
[1672574511300,20.0,9.9332,9.9277,40.0]
[1672574511513,20.0,9.9332,9.9276,75.63]
[1672574511514,20.0,9.9332,9.9278,75.62]
[1672574511721,20.0,9.9332,9.9271,40.0]
[1672574511945,20.0,9.9346,9.9272,75.63]
[1672574512154,20.0,9.9346,9.9273,40.0]
[1672574512356,20.0,9.9346,9.9274,75.63]
[1672574512574,20.0,9.9346,9.9275,40.0]
[1672574512783,20.0,9.9346,9.9277,40.0]
[1672574512988,20.0,9.9346,9.9278,75.62]
[1672574513208,20.0,9.9346,9.9279,40.0]
[1672574513523,20.0,9.9346,9.9281,40.0]
[1672574513729,20.0,9.9346,9.9283,40.0]
[1672574513940,20.0,9.9346,9.9285,40.0]
[1672574514255,20.0,9.9346,9.9287,40.0]
[1672574514472,20.0,9.9346,9.9289,40.0]
[1672574514669,20.0,9.9346,9.929,75.62]
[1672574515094,20.0,9.9346,9.9291,40.0]
[1672574515309,20.0,9.9348,9.9292,75.61]
[1672574515501,20.0,9.9348,9.9098,766.84235511]
[1672574515502,20.0,9.9348,9.9281,40.0]
[1672574515713,20.0,9.9348,9.9283,40.0]
[1672574515941,20.0,9.9348,9.9284,75.62]
[1672574516151,80.34020762,9.9348,9.9284,75.62]
[1672574516361,11.84870354,9.9347,9.928,75.62]
[1672574516568,20.0,9.9346,9.9281,40.0]
[1672574516890,11.84870354,9.9345,9.9282,75.62]
[1672574517097,20.0,9.9344,9.9282,75.62]
[1672574517498,11.84870354,9.9343,9.9282,75.62]
[1672574517939,20.0,9.9342,9.9283,40.0]
[1672574518151,20.0,9.9342,9.9285,40.0]
[1672574518340,31.84870354,9.9342,9.9286,75.62]
[1672574518556,31.84870354,9.9342,9.9284,75.62]
[1672574518762,31.84870354,9.9342,9.9279,40.0]
[1672574518973,31.84870354,9.9342,9.928,75.62]
[1672574520046,31.84870354,9.9342,9.9281,40.0]
[1672574520233,31.84870354,9.9342,9.9282,75.62]
[1672574520649,31.84870354,9.9342,9.9283,40.0]
[1672574520972,31.84870354,9.9342,9.9285,40.0]
[1672574521179,31.84870354,9.9342,9.9286,75.62]
[1672574522041,31.84870354,9.9342,9.9283,40.0]
[1672574522249,31.84870354,9.9342,9.9284,75.62]
[1672574522565,31.84870354,9.9342,9.9285,40.0]
[1672574522988,31.84870354,9.9342,9.8949,1205.1227775]
[1672574522989,62.06776826,9.9341,9.9264,75.64]
[1672574523313,112.47592319,9.934,9.9251,75.65]
[1672574523513,50.31,9.9339,9.9251,75.65]
[1672574523715,50.31,9.9339,9.9261,23.2846]
[1672574523716,40.0,9.9337,9.9261,23.2846]
[1672574523927,40.0,9.9335,9.9262,23.2846]
[1672574524147,40.0,9.9335,9.9248,117.8203]
[1672574524148,40.0,9.9333,9.9263,23.2846]
[1672574524361,20.0,9.9332,9.9263,23.2846]
[1672574524580,40.0,9.9331,9.9263,23.2846]
[1672574524891,40.0,9.9329,9.9263,23.2846]
[1672574525291,40.0,9.9327,9.9263,23.2846]
[1672574525504,40.0,9.9325,9.9263,23.2846]
[1672574525836,40.0,9.9323,9.9263,23.2846]
[1672574526031,20.0,9.9322,9.9263,23.2846]
[1672574526241,40.0,9.9321,9.9263,23.2846]
[1672574526463,205.14569516,9.9321,9.9263,23.2846]
[1672574526667,112.66977197,9.9321,9.9263,23.2846]
[1672574526871,40.0,9.9319,9.9263,23.2846]
[1672574527293,40.0,9.9317,9.9263,23.2846]
[1672574527829,40.0,9.9315,9.9263,23.2846]
[1672574528248,165.14569516,9.9314,9.9263,23.2846]
[1672574528668,165.14569516,9.9313,9.9263,23.2846]
[1672574528868,92.47592319,9.9313,9.9263,23.2846]
[1672574529080,92.44125652,9.9312,9.9263,23.2846]
[1672574529509,40.0,9.931,9.9263,23.2846]
[1672574529918,80.59255298,9.9309,9.9263,23.2846]
[1672574530153,40.0,9.9308,9.9263,23.2846]
[1672574530461,80.59255298,9.9307,9.9263,23.2846]
[1672574531618,146.08979161,9.9307,9.9263,23.2846]
[1672574532033,80.59255298,9.9306,9.9263,23.2846]
[1672574532663,80.59255298,9.9306,9.9264,12.00804476]
[1672574536364,80.59255298,9.9306,9.9265,40.0]
[1672574537619,80.59255298,9.9306,9.9266,12.00502978]
[1672574543184,92.44125652,9.9306,9.9266,12.00502978]
[1672574543608,80.59255298,9.9305,9.9263,23.2846]
[1672574544664,146.08979161,9.9305,9.9264,12.00804476]
[1672574545068,80.59255298,9.9304,9.9264,12.00804476]
[1672574545493,65.49723863,9.9303,9.9264,12.00804476]
[1672574545923,80.59255298,9.9302,9.9264,12.00804476]
[1672574546344,65.49723863,9.9301,9.9264,12.00804476]
[1672574546766,80.59255298,9.93,9.9264,12.00804476]
[1672574547185,65.49723863,9.9299,9.9264,12.00804476]
[1672574547608,80.59255298,9.9298,9.9264,12.00804476]
[1672574547929,65.49723863,9.9297,9.9264,12.00804476]
[1672574548458,80.59255298,9.9296,9.9264,12.00804476]
[1672574548886,65.49723863,9.9295,9.9264,12.00804476]
[1672574549198,80.59255298,9.9294,9.9264,12.00804476]
[1672574549603,65.49723863,9.9293,9.9264,12.00804476]
[1672574549935,80.59255298,9.9292,9.9264,12.00804476]
[1672574550546,65.49723863,9.9291,9.9253,24.2286]
[1672574550876,80.59255298,9.929,9.9253,24.2286]
[1672574551413,80.59255298,9.929,9.9254,12.02312145]
[1672574552963,80.59255298,9.929,9.9255,40.0]
[1672574553613,80.59255298,9.929,9.9255,52.02161364]
[1672574554447,80.59255298,9.929,9.9255,12.02161364]
[1672574557374,65.49723863,9.9315,9.9256,40.0]
[1672574557790,79.73368631,9.9319,9.9256,40.0]
[1672574558417,79.73368631,9.9319,9.9257,12.01859812]
[1672574559492,79.73368631,9.9319,9.9259,40.0]
[1672574559681,79.73368631,9.9319,9.9261,40.0]
[1672574560879,10.31,9.9367,9.9264,40.0]
[1672574561065,24.5079,9.9346,9.9265,75.63]
[1672574561281,20.0,9.9345,9.9266,40.0]
[1672574561486,20.0,9.9345,9.9268,40.0]
[1672574562021,20.0,9.9345,9.927,40.0]
[1672574562438,20.0,9.9345,9.927,341.8]
[1672574563485,20.0,9.9345,9.9273,40.0]
[1672574564865,24.5079,9.9346,9.9275,301.8]
[1672574565084,40.0,9.9442,9.9278,40.0]
[1672574565393,40.0,9.944,9.9281,40.0]
[1672574565583,40.0,9.944,9.9284,40.0]
[1672574565794,11.84870354,9.9439,9.9286,301.8]
[1672574566013,40.0,9.9438,9.9288,301.8]
[1672574566224,40.0,9.9438,9.9291,40.0]
[1672574566225,174.64261046,9.9438,9.9291,40.0]
[1672574566545,40.0,9.9436,9.9294,40.0]
[1672574566767,40.0,9.9436,9.9295,75.61]
[1672574566953,40.0,9.9434,9.9296,341.8]
[1672574567158,20.0,9.9433,9.9298,301.8]
[1672574567480,51.84870354,9.9432,9.9301,40.0]
[1672574567683,40.0,9.943,9.9304,40.0]
[1672574567899,40.0,9.943,9.9306,40.0]
[1672574568104,40.0,9.9428,9.9308,40.0]
[1672574568319,40.0,9.9428,9.9309,75.6]
[1672574568530,40.0,9.9426,9.931,40.0]
[1672574568741,40.0,9.9426,9.9312,40.0]
[1672574568742,10.31,9.9425,9.9312,40.0]
[1672574568963,40.0,9.9424,9.9313,75.6]
[1672574569166,40.0,9.9422,9.9314,40.0]
[1672574569382,30.31,9.9421,9.9316,40.0]
[1672574569594,40.0,9.942,9.9318,40.0]
[1672574569918,40.0,9.942,9.932,40.0]
[1672574569919,79.45537183,9.9419,9.932,40.0]
[1672574570130,40.0,9.9418,9.9322,40.0]
[1672574570319,10.31,9.9417,9.9323,75.59]
[1672574570522,156.801314,9.9417,9.9322,75.59]
[1672574570738,117.34594217,9.9416,9.9322,75.59]
[1672574570974,186.491314,9.9416,9.9324,40.0]
[1672574571178,40.0,9.9414,9.9325,75.59]
[1672574571372,40.0,9.9414,9.9324,75.59]
[1672574571598,77.34594217,9.9413,9.9324,99.3515]
[1672574571922,51.84870354,9.9412,9.9325,40.0]
[1672574572112,51.84870354,9.9412,9.9326,75.59]
[1672574572323,51.84870354,9.9412,9.9327,40.0]
[1672574572324,11.84870354,9.9411,9.9327,40.0]
[1672574572875,11.84870354,9.9411,9.9328,22.8487]
[1672574573062,11.84870354,9.9411,9.9328,98.4387]
[1672574573271,11.84870354,9.9411,9.9329,22.8487]
[1672574573698,11.84870354,9.9411,9.9329,98.4387]
[1672574573907,11.84870354,9.9411,9.9331,40.0]
[1672574574119,40.0,9.941,9.933,22.8487]
[1672574574541,11.84870354,9.9409,9.9331,22.8487]
[1672574574746,69.14537183,9.9411,9.9332,40.0]
[1672574575166,69.14537183,9.9411,9.9333,98.4287]
[1672574575379,69.14537183,9.9411,9.9334,40.0]
[1672574575595,69.14537183,9.9411,9.9334,341.8]
[1672574575809,69.14537183,9.9411,9.9336,40.0]
[1672574576014,69.14537183,9.9411,9.9335,24.6899]
[1672574576338,69.14537183,9.9411,9.9336,75.58]
[1672574576551,69.14537183,9.9411,9.9336,100.2699]
[1672574576863,69.14537183,9.9411,9.9337,40.0]
[1672574577072,69.14537183,9.9411,9.9337,64.6899]
[1672574577602,69.14537183,9.9411,9.9337,76.58797687]
[1672574577802,69.14537183,9.9411,9.9339,40.0]
[1672574578227,69.14537183,9.9411,9.9338,24.6899]
[1672574578539,69.14537183,9.9411,9.9339,40.0]
[1672574578971,69.14537183,9.9411,9.9339,63.5575]
[1672574579278,11.84870354,9.941,9.9339,23.5575]
[1672574579475,40.0,9.9409,9.9339,23.5575]
[1672574579684,109.14537183,9.9409,9.9339,23.5575]
[1672574580001,69.14537183,9.9408,9.9339,23.5575]
[1672574580643,40.0,9.9406,9.9339,23.5575]
[1672574580961,40.0,9.9404,9.9339,23.5575]
[1672574581369,109.14537183,9.9404,9.9339,23.5575]
[1672574581578,40.0,9.9403,9.934,11.8935611]
[1672574582641,69.14537183,9.9402,9.934,11.8935611]
[1672574582832,40.0,9.9401,9.934,11.8935611]
[1672574583045,51.84870354,9.9401,9.934,11.8935611]
[1672574583254,40.0,9.9399,9.934,11.8935611]
[1672574583691,51.84870354,9.9399,9.934,11.8935611]
[1672574583902,40.0,9.9397,9.934,11.8935611]
[1672574584301,109.14537183,9.9397,9.934,11.8935611]
[1672574584514,120.99407537,9.9397,9.934,11.8935611]
[1672574585478,80.99407537,9.9397,9.934,11.8935611]
[1672574585901,40.0,9.9396,9.934,11.8935611]
[1672574588109,80.99407537,9.9397,9.934,11.8935611]
[1672574588718,40.0,9.9396,9.934,11.8935611]
[1672574591454,69.14537183,9.9395,9.934,11.8935611]
[1672574591679,40.0,9.9394,9.934,11.8935611]
[1672574591875,52.28786977,9.9394,9.934,11.8935611]
[1672574592084,40.0,9.9392,9.934,11.8935611]
[1672574592524,40.0,9.939,9.934,11.8935611]
[1672574593046,40.0,9.9388,9.934,11.8935611]
[1672574597779,12.28786977,9.9387,9.934,11.8935611]
[1672574598715,40.0,9.9386,9.934,11.8935611]
[1672574599135,40.0,9.9384,9.934,11.8935611]
[1672574599556,12.28786977,9.9383,9.934,11.8935611]
[1672574599963,40.0,9.9381,9.934,11.8935611]
[1672574600189,10.31,9.938,9.934,11.8935611]
[1672574600404,40.0,9.9378,9.934,11.8935611]
[1672574600720,40.0,9.9376,9.9202,301.8]
[1672574601028,40.0,9.9374,9.9205,40.0]
[1672574601243,40.0,9.9372,9.9207,301.8]
[1672574601439,40.0,9.937,9.9209,301.8]
[1672574601655,40.0,9.937,9.9212,40.0]
[1672574601656,30.31,9.9369,9.9212,40.0]
[1672574601867,40.0,9.9368,9.9215,40.0]
[1672574602181,40.0,9.9366,9.9218,40.0]
[1672574602398,40.0,9.9364,9.9221,40.0]
[1672574602601,40.0,9.9362,9.9223,301.8]
[1672574602822,20.0,9.9361,9.9225,301.8]
[1672574603020,40.0,9.936,9.9228,40.0]
[1672574603350,20.0,9.9359,9.9231,40.0]
[1672574603547,40.0,9.9358,9.9233,301.8]
[1672574603864,40.0,9.9356,9.9236,40.0]
[1672574604185,40.0,9.9354,9.9239,40.0]
[1672574604392,40.0,9.9354,9.9241,301.8]
[1672574604393,20.0,9.9353,9.9241,301.8]
[1672574604707,40.0,9.9352,9.9244,40.0]
[1672574604915,20.0,9.9351,9.9247,40.0]
[1672574605112,231.15051186,9.9351,9.9249,301.8]
[1672574605319,177.68935657,9.935,9.9251,301.8]
[1672574605529,177.68935657,9.935,9.9254,40.0]
[1672574605530,40.0,9.9348,9.9254,40.0]
[1672574605859,87.97625637,9.9347,9.9257,40.0]
[1672574606071,87.97625637,9.9347,9.9259,301.8]
[1672574606290,67.97625637,9.9346,9.9262,40.0]
[1672574606487,20.0,9.9345,9.9265,40.0]
[1672574606807,67.97625637,9.9344,9.9268,40.0]
[1672574607021,20.0,9.9343,9.9271,40.0]
[1672574607210,20.0,9.9345,9.9273,301.8]
[1672574607421,143.17425549,9.9349,9.9275,341.8]
[1672574607632,10.31,9.942,9.9278,40.0]
[1672574607852,12.28786977,9.9383,9.928,301.8]
[1672574608061,12.28786977,9.9383,9.9282,301.8]
[1672574608280,12.28786977,9.9383,9.9284,341.8]
[1672574608492,12.28786977,9.9383,9.9315,11.93120086]
[1672574608702,12.28786977,9.9383,9.9316,75.6]
[1672574608910,12.28786977,9.9383,9.9317,40.0]
[1672574609129,12.28786977,9.9383,9.9319,40.0]
[1672574609334,12.28786977,9.9383,9.9318,75.59]
[1672574609550,12.28786977,9.9383,9.9316,75.6]
[1672574612579,12.28786977,9.9383,9.9317,11.92818898]
[1672574612802,12.28786977,9.9383,9.9318,75.59]
[1672574613974,85.74902506,9.9383,9.9317,11.92818898]
[1672574614277,52.28786977,9.9382,9.9317,11.92818898]
[1672574614694,40.0,9.938,9.9317,11.92818898]
[1672574615012,40.0,9.9378,9.9317,11.92818898]
[1672574615212,40.0,9.9376,9.9317,11.92818898]
[1672574615417,30.31,9.9375,9.925,301.8]
[1672574615632,40.0,9.9374,9.9253,40.0]
[1672574615959,40.0,9.9372,9.9255,40.0]
[1672574616170,40.0,9.937,9.9256,75.64]
[1672574616505,40.0,9.9368,9.9257,40.0]
[1672574616715,40.0,9.9366,9.9259,40.0]
[1672574616886,20.0,9.9365,9.9261,40.0]
[1672574617095,40.0,9.9364,9.9262,75.64]
[1672574617324,20.0,9.9363,9.9262,75.64]
[1672574617527,40.0,9.9362,9.9263,40.0]
[1672574617738,40.0,9.936,9.9265,40.0]
[1672574617961,20.0,9.9359,9.9266,75.63]
[1672574618150,40.0,9.9358,9.9266,75.63]
[1672574618365,40.0,9.9356,9.9266,75.63]
[1672574618565,40.0,9.9356,9.9261,40.0]
[1672574618781,40.0,9.9354,9.9263,40.0]
[1672574618997,20.0,9.9353,9.9264,75.64]
[1672574619215,40.0,9.9352,9.9264,75.64]
[1672574619425,20.0,9.9351,9.9264,75.64]
[1672574619748,105.74902506,9.9351,9.9265,40.0]
[1672574619940,85.74902506,9.935,9.9267,40.0]
[1672574620146,40.0,9.9348,9.9268,75.63]
[1672574620367,20.0,9.9347,9.9269,40.0]
[1672574620680,32.28786977,9.9347,9.9271,40.0]
[1672574620893,12.28786977,9.9346,9.9273,40.0]
[1672574621103,20.0,9.9345,9.9275,301.8]
[1672574621332,20.0,9.9347,9.9277,341.8]
[1672574621522,20.0,9.9347,9.928,40.0]
[1672574621736,20.0,9.9349,9.9283,40.0]
[1672574621942,20.0,9.9349,9.9284,75.62]
[1672574622153,20.0,9.9349,9.9285,40.0]
[1672574622369,20.0,9.9349,9.9287,40.0]
[1672574622591,20.0,9.9349,9.9289,40.0]
[1672574622799,20.0,9.9349,9.9288,75.62]
[1672574622800,20.0,9.9349,9.929,75.62]
[1672574622995,20.0,9.9349,9.9287,40.0]
[1672574623201,20.0,9.9349,9.9288,75.62]
[1672574624158,20.0,9.9349,9.9289,40.0]
[1672574624366,20.0,9.9349,9.9291,40.0]
[1672574624571,20.0,9.9349,9.9293,40.0]
[1672574624893,20.0,9.9349,9.9295,40.0]
[1672574625107,20.0,9.9349,9.9296,75.61]
[1672574625519,20.0,9.9349,9.9295,40.0]
[1672574625741,20.0,9.9349,9.9297,40.0]
[1672574625957,20.0,9.9349,9.9298,75.61]
[1672574626357,20.0,9.9349,9.9299,40.0]
[1672574626568,20.0,9.9349,9.9298,75.61]
[1672574626777,20.0,9.9349,9.9296,75.61]
[1672574626988,20.0,9.9349,9.9297,40.0]
[1672574627199,20.0,9.9349,9.9298,75.61]
[1672574627625,20.0,9.9349,9.9297,40.0]
[1672574627824,20.0,9.9349,9.9298,75.61]
[1672574628686,20.0,9.9349,9.93,40.0]
[1672574629098,20.0,9.9349,9.9299,11.95530025]
[1672574630578,20.0,9.9349,9.9292,75.61]
[1672574630765,20.0,9.9349,9.929,75.62]
[1672574631298,12.28786977,9.9348,9.9287,40.0]
[1672574631526,20.0,9.9347,9.9288,75.62]
[1672574631739,20.0,9.9347,9.9289,40.0]
[1672574631948,20.0,9.9347,9.9288,75.62]
[1672574631949,20.0,9.9347,9.9291,40.0]
[1672574632369,20.0,9.9347,9.9287,40.0]
[1672574632594,20.0,9.9347,9.929,11.96885957]
[1672574633643,20.0,9.9347,9.9286,75.62]
[1672574633858,20.0,9.9347,9.9285,40.0]
[1672574634055,20.0,9.9347,9.9287,40.0]
[1672574634260,20.0,9.9347,9.9288,75.62]
[1672574634470,20.0,9.9347,9.9289,40.0]
[1672574634893,20.0,9.9347,9.929,75.62]
[1672574635728,32.28786977,9.9347,9.929,75.62]
[1672574635938,32.28786977,9.9347,9.9287,40.0]
[1672574636171,32.28786977,9.9347,9.9289,40.0]
[1672574636384,32.28786977,9.9347,9.929,75.62]
[1672574636686,32.28786977,9.9347,9.9291,11.96735286]
[1672574636895,187.68161636,9.9346,9.9291,11.96735286]
[1672574637105,40.0,9.9345,9.9291,11.96735286]
[1672574637311,20.0,9.9344,9.9291,11.96735286]
[1672574637517,40.0,9.9343,9.927,75.63]
[1672574637731,20.0,9.9342,9.9268,75.63]
[1672574637944,32.28786977,9.9342,9.9269,40.0]
[1672574638149,12.28786977,9.9341,9.927,75.63]
[1672574638357,20.0,9.934,9.9271,40.0]
[1672574638579,20.0,9.934,9.9273,40.0]
[1672574638782,12.28786977,9.9339,9.9274,75.63]
[1672574638987,20.0,9.9338,9.9274,75.63]
[1672574639425,12.28786977,9.9337,9.927,75.63]
[1672574639613,20.0,9.9336,9.927,75.63]
[1672574640036,12.28786977,9.9335,9.927,75.63]
[1672574640245,12.28786977,9.9335,9.9267,40.0]
[1672574640472,20.0,9.9334,9.9268,75.63]
[1672574640789,32.28786977,9.9334,9.9268,75.63]
[1672574641004,32.28786977,9.9334,9.9269,40.0]
[1672574641196,32.28786977,9.9334,9.927,75.63]
[1672574641407,32.28786977,9.9334,9.9271,40.0]
[1672574641611,32.28786977,9.9334,9.9273,40.0]
[1672574641823,32.28786977,9.9334,9.9274,75.63]
[1672574642032,32.28786977,9.9334,9.9271,40.0]
[1672574642353,32.28786977,9.9334,9.9273,40.0]
[1672574642554,32.28786977,9.9334,9.9275,40.0]
[1672574642769,32.28786977,9.9334,9.9276,75.63]
[1672574642982,32.28786977,9.9334,9.9277,40.0]
[1672574643190,32.28786977,9.9334,9.9279,40.0]
[1672574643415,32.28786977,9.9334,9.928,75.62]
[1672574643626,32.28786977,9.9334,9.9281,40.0]
[1672574643837,32.28786977,9.9334,9.9283,40.0]
[1672574644049,32.28786977,9.9334,9.9285,40.0]
[1672574644243,32.28786977,9.9334,9.9286,75.62]
[1672574644454,32.28786977,9.9334,9.9287,40.0]
[1672574644660,32.28786977,9.9334,9.9289,40.0]
[1672574645088,32.28786977,9.9334,9.9288,75.62]
[1672574645301,32.28786977,9.9334,9.9285,40.0]
[1672574645524,32.28786977,9.9334,9.9287,40.0]
[1672574645728,32.28786977,9.9334,9.9288,75.62]
[1672574645938,32.28786977,9.9334,9.9289,40.0]
[1672574647605,20.0,9.9334,9.9289,40.0]
[1672574647812,20.0,9.9344,9.9287,40.0]
[1672574650235,20.0,9.9344,9.9286,75.62]
[1672574650458,20.0,9.9344,9.9283,40.0]
[1672574650672,20.0,9.9344,9.9285,40.0]
[1672574650863,20.0,9.9344,9.9286,75.62]
[1672574651070,20.0,9.9344,9.9287,40.0]
[1672574651294,20.0,9.9344,9.9289,40.0]
[1672574652670,12.28786977,9.9343,9.9289,40.0]
[1672574652861,20.0,9.9342,9.9289,40.0]
[1672574656361,20.0,9.9344,9.9289,40.0]
[1672574656549,20.0,9.9344,9.9291,40.0]
[1672574656762,20.0,9.9344,9.9293,40.0]
[1672574656969,20.0,9.9357,9.9293,40.0]
[1672574657198,23.8185,9.9358,9.9293,40.0]
[1672574657199,23.8185,9.9358,9.9293,341.8]
[1672574657389,10.31,9.9417,9.9296,40.0]
[1672574657606,40.0,9.9416,9.9298,301.8]
[1672574657814,40.0,9.9416,9.9297,75.61]
[1672574657815,10.31,9.9415,9.93,301.8]
[1672574658036,40.0,9.9414,9.9303,40.0]
[1672574658250,10.31,9.9413,9.9304,75.6]
[1672574658464,40.0,9.9412,9.9305,40.0]
[1672574658772,199.96948613,9.9412,9.9307,40.0]
[1672574658987,52.28786977,9.9412,9.9309,40.0]
[1672574659194,40.0,9.941,9.9311,40.0]
[1672574659413,40.0,9.941,9.9313,40.0]
[1672574659600,40.0,9.9408,9.9314,75.6]
[1672574660033,40.0,9.9406,9.9314,75.6]
[1672574660250,40.0,9.9406,9.9315,46.4268]
[1672574660451,40.0,9.9404,9.9316,75.6]
[1672574660870,40.0,9.9402,9.9316,75.6]
[1672574661079,40.0,9.9402,9.9317,23.6306]
[1672574661288,159.96948613,9.9401,9.9318,75.59]
[1672574661504,40.0,9.94,9.9318,75.59]
[1672574661703,199.96948613,9.94,9.9319,23.6306]
[1672574661912,40.0,9.9398,9.932,75.59]
[1672574662351,40.0,9.9396,9.9321,23.6306]
[1672574662669,40.0,9.9394,9.9322,75.59]
[1672574662864,40.0,9.9394,9.9322,99.4803]
[1672574663091,40.0,9.9392,9.9322,99.4803]
[1672574663408,74.22046107,9.9391,9.9322,99.4803]
[1672574663716,40.0,9.939,9.9322,99.4803]
[1672574664144,40.0,9.9388,9.9322,99.4803]
[1672574664544,74.22046107,9.9387,9.9322,99.4803]
[1672574665928,74.22046107,9.9387,9.9322,23.8903]
[1672574666350,40.0,9.9386,9.9322,23.8903]
[1672574666666,74.22046107,9.9385,9.9322,23.8903]
[1672574667068,125.74902506,9.9384,9.9322,23.8903]
[1672574667272,113.46115529,9.9384,9.9322,23.8903]
[1672574667500,40.0,9.9382,9.9322,23.8903]
[1672574667909,40.0,9.938,9.9322,23.8903]
[1672574668329,40.0,9.9378,9.9322,23.8903]
[1672574668765,40.0,9.9376,9.9322,23.8903]
[1672574669173,40.0,9.9374,9.9322,23.8903]
[1672574669594,73.46115529,9.9373,9.9322,23.8903]
[1672574669816,40.0,9.9372,9.9322,23.8903]
[1672574670033,114.22046107,9.9372,9.9322,23.8903]
[1672574670340,184.11625213,9.9371,9.9293,75.61]
[1672574670536,184.11625213,9.9371,9.9215,40.0]
[1672574670537,40.0,9.937,9.9215,40.0]
[1672574670745,40.0,9.9368,9.9217,301.8]
[1672574670967,20.0,9.9367,9.922,40.0]
[1672574671162,20.0,9.9367,9.9222,301.8]
[1672574671374,108.3152,9.9366,9.9224,301.8]
[1672574671703,108.3152,9.9366,9.9223,95.67]
[1672574671704,108.3152,9.9366,9.9226,301.8]
[1672574672028,151.82838236,9.9369,9.9228,301.8]
[1672574672337,151.82838236,9.9369,9.923,341.8]
[1672574672540,151.82838236,9.9369,9.9232,341.8]
[1672574672751,151.82838236,9.9369,9.9235,40.0]
[1672574672951,151.82838236,9.9369,9.9237,301.8]
[1672574673164,78.36722707,9.9369,9.9239,341.8]
[1672574673367,78.36722707,9.9369,9.9242,40.0]
[1672574673578,78.36722707,9.9369,9.9244,301.8]
[1672574673789,78.36722707,9.9369,9.9246,341.8]
[1672574674115,78.36722707,9.9369,9.9249,40.0]
[1672574674329,78.36722707,9.9369,9.9252,40.0]
[1672574674645,78.36722707,9.9369,9.9255,40.0]
[1672574674854,78.36722707,9.9369,9.9258,40.0]
[1672574675066,78.36722707,9.9369,9.926,301.8]
[1672574675272,78.36722707,9.9369,9.9262,301.8]
[1672574675478,78.36722707,9.9369,9.9264,301.8]
[1672574675805,78.36722707,9.9369,9.9267,40.0]
[1672574676002,78.36722707,9.9369,9.9269,341.8]
[1672574676212,78.36722707,9.9369,9.9272,40.0]
[1672574676421,78.36722707,9.9369,9.9275,40.0]
[1672574676637,78.36722707,9.9369,9.9277,301.8]
[1672574676963,78.36722707,9.9369,9.9279,341.8]
[1672574677176,78.36722707,9.9369,9.9281,301.8]
[1672574677361,78.36722707,9.9369,9.9284,40.0]
[1672574677569,78.36722707,9.9369,9.9287,40.0]
[1672574677800,78.36722707,9.9369,9.9289,301.8]
[1672574678014,78.36722707,9.9369,9.9291,301.8]
[1672574678203,78.36722707,9.9369,9.9294,40.0]
[1672574678414,78.36722707,9.9369,9.9296,40.0]
[1672574678618,78.36722707,9.9369,9.9298,40.0]
[1672574678827,78.36722707,9.9369,9.9299,75.61]
[1672574679163,78.36722707,9.9369,9.93,40.0]
[1672574679374,78.36722707,9.9369,9.9302,40.0]
[1672574680725,78.36722707,9.9369,9.9305,40.0]
[1672574680941,78.36722707,9.9369,9.9306,75.6]
[1672574681156,78.36722707,9.9369,9.9305,40.0]
[1672574682635,78.36722707,9.9369,9.9304,40.0]
[1672574682947,78.36722707,9.9369,9.93,51.95379381]
[1672574683343,78.36722707,9.9369,9.9302,40.0]
[1672574683559,78.36722707,9.9369,9.9305,11.94626207]
[1672574685680,10.31,9.9391,9.9305,11.94626207]
[1672574686310,88.67722707,9.9391,9.9305,11.94626207]
[1672574686522,78.36722707,9.9391,9.9307,40.0]
[1672574687162,78.36722707,9.9391,9.9309,40.0]
[1672574687571,78.36722707,9.9391,9.9311,40.0]
[1672574688113,78.36722707,9.9391,9.9313,40.0]